{"text_format":"1","workbook":"xlsx","n_sheets":5,"sheets":["Employment","Housing","Education","Integration","Results Dashboard"],"not_rendered":{"charts":8,"images":0,"macros":1,"external_links":0,"defined_names":0,"comments":0,"pivot_tables":0},"unopened":[],"bounds":{"document_bytes":16777216,"sheet_cells":100000,"rows_first":2000,"rows_last":500,"rows_between":2000,"halvings":0,"cell_chars":16384,"cell_head_chars":4096},"cells_cut":0,"cells_raw":0,"read":"whole","date_system":"1900"}

{"sheet":"Employment","index":0,"n_rows":28,"n_cols":7,"rows_kept":28,"cut":false,"hidden":false,"merged":[]}
["Questions "]
[null,null,null,null,"Comments"]
[" Do you have a job? (i.e. paid employment) ",null,null,null,null,1]
["Do you have a stable employer? (Select no if temporary employment)",null,null,null,null,1,"Please select N/A if this a temporary job (I.e. only a week)"]
["Do you earn enough money to cover your monthly expenses? ",null,null,null,null,1]
["Do you feel safe in your work environment? ",null,null,null,null,1]
["Job Satisfaction "]
["Are you happy with the job you hold? ",null,null,null,null,2]
["Are you happy with your work schedule? (i.e. shift, coordination with family schedules)",null,null,null,null,2]
["Are you happy with your hours? (i.e. amount and consistency) ",null,null,null,null,2]
[" Do you feel that you are appropriately compensated? ",null,null,null,null,1]
["Are you happy with your duties? ",null,null,null,null,1]
["Do you feel your skills are being used at your job? ",null,null,null,null,2]
["Are you certified or licensed in a professional field?",null,null,null,null,2]
["Do you want to obtain this certification in the United States?",null,null,null,null,1]
["Do you have the ability to obtain this certification in the United States?",null,null,null,null,2]
["Do you feel like you can advance in your current job? ",null,null,null,null,1]
["Social Connectedness "]
["Do you have someone to talk to about work? New employment, rights, wages, etc. ",null,null,null,null,2]
[]
[null,"Total Yes","Total No","Total N/a"]
[null,{"$f":"COUNTIF(F4:F21,\"1\")","v":7},{"$f":"COUNTIF(F4:F21,\"2\")","v":7},{"$f":"COUNTIF(F4:F21,\"3\")","v":0}]
[]
["How much is your hourly wage? ",10]
["How many hours/week do you work ",4]
["Monthly Income",{"$f":"4*(B24*B25)","v":160}]
["Yearly Income",{"$f":"B26*12","v":1920}]
["Please compare to published poverty levels"]

{"sheet":"Housing","index":1,"n_rows":22,"n_cols":7,"rows_kept":22,"cut":false,"hidden":false,"merged":[]}
["Questions "]
[null,null,null,null,"Comments"]
["Do you pay your rent on time? ",null,null,null,null,1]
["Do you earn enough money to pay for your rent in full? ",null,null,null,null,3]
["Can you afford heat?",null,null,null,null,1]
["Can you afford water?",null,null,null,null,1]
["Can you afford electricity?",null,null,null,null,1]
["Can you afford extras such as television, telephone, and internet service?",null,null,null,null,2]
["If there is a problem with your apartment, does your landlord fix the problem within a week? ",null,null,null,null,1]
["Do you feel safe in your neighborhood?",null,null,null,null,1]
["Housing Satisfaction"]
["Are you living where you want to live? ",null,null,null,null,3]
["If you want to move, are you able to? ",null,null,null,null,3,"Please select N/a if you do not want to move. "]
["If you want to buy a house, do you know where to go to get financial assistance?",null,null,null,null,3]
["Do you feel like you can speak with your landlord about repairs/improvements/etc.? ",null,null,null,null,3]
[]
["Social Connectedness "]
["Do you know your neighbors? ",null,null,null,null,3]
["Do you have someone to talk to about your apartment/housing goals in the future?",null,null,null,null,3]
[]
[null,"Total Yes","Total No","Total N/a"]
[null,{"$f":"COUNTIF(F3:F24,\"1\")","v":6},{"$f":"COUNTIF(F3:F24,\"2\")","v":1},{"$f":"COUNTIF(F3:F24,\"3\")","v":7}]

{"sheet":"Education","index":2,"n_rows":18,"n_cols":6,"rows_kept":18,"cut":false,"hidden":false,"merged":[]}
["Questions "]
[null,null,null,null,"Comments"]
["Are you able to attend English classes at Ascentria as frequently as your caseworker recommends?",null,null,null,null,2]
["Do you feel accepted in your classes? ",null,null,null,null,1]
["Do you feel like you are making progress in English? ",null,null,null,null,1]
["Are you learning skills to get a better job? ",null,null,null,null,1]
["Do you feel like you have options to advance your education? ",null,null,null,null,2]
["Do you know how to receive assistance for education? Scholarships, grants, aid, etc.? ",null,null,null,null,1]
["Family Education"]
["Are your minor children attending school consistently? ",null,null,null,null,1]
["Do you participate in your child's or children's education? (Please Explain) ",null,null,null,null,3]
["Does your child or children feel safe at school? ",null,null,null,null,1]
[]
["Social Connectedness "]
["Do you have someone to talk to about education, schooling, funding, planning, etc.?",null,null,null,null,2]
[]
[null,"Total Yes","Total No","Total N/a"]
[null,{"$f":"COUNTIF(F3:F20,\"1\")","v":6},{"$f":"COUNTIF(F3:F20,\"2\")","v":3},{"$f":"COUNTIF(F3:F20,\"3\")","v":1}]

{"sheet":"Integration","index":3,"n_rows":25,"n_cols":6,"rows_kept":25,"cut":false,"hidden":false,"merged":[]}
["Questions "]
[null,null,null,null,"Comments"]
["Do you know how to pay each bill individually?",null,null,null,null,2]
["Are you keeping appointments? ",null,null,null,null,2]
["If you have ever contacted the police, did you feel they were responsive/helpful?",null,null,null,null,2]
["Is your family adjusting well to life in America? ",null,null,null,null,2]
["Do you feel like you are able to attain your goals? ",null,null,null,null,2]
["Transportation "]
["Can you get to work? Grocery store? Hospital? Etc.? ",null,null,null,null,2]
["Do you know how to take public transportation? ",null,null,null,null,2]
["Do you have a drivers permit/license? ",null,null,null,null,2]
["Do you own a car? ",null,null,null,null,1]
["                                                                                                                  Accessing Services  "," "]
["Do you have knowledge about service providers other than Ascentria?",null,null,null,null,3]
["Are you able to ask for services outside of Ascentria? ",null,null,null,null,2]
["Are you able to advocate for what you need? ",null,null,null,null,2]
["Social Connectedness "]
["Do you have anyone to speak with about your goals in America?",null,null,null,null,2]
["Do you have someone to turn to when things are difficult? ",null,null,null,null,1]
["Do you have friends/relationships with people that are outside of your nationality/ethnicity? ",null,null,null,null,2]
["Do you feel you have friends?",null,null,null,null,1]
["Do you attend church/mosque or other religious services?",null,null,null,null,1]
[]
[null,"Total Yes","Total No","Total N/a"]
[null,{"$f":"COUNTIF(F3:F22,\"1\")","v":4},{"$f":"COUNTIF(F3:F22,\"2\")","v":12},{"$f":"COUNTIF(F3:F20,\"3\")","v":1}]

{"sheet":"Results Dashboard","index":4,"n_rows":31,"n_cols":18,"rows_kept":31,"cut":false,"hidden":false,"merged":[]}
[]
[]
[]
[]
[]
[]
[]
[]
[]
[]
[]
["Comments",null,{"$f":"Employment!E3","v":0},null,null,null,null,{"$f":"Housing!E3","v":0},null,null,null,null,{"$f":"Education!E3","v":0},null,null,null,null,{"$f":"Integration!E3","v":0}]
[null,null,{"$f":"Employment!E4","v":0},null,null,null,null,{"$f":"Housing!E4","v":0},null,null,null,null,{"$f":"Education!E4","v":0},null,null,null,null,{"$f":"Integration!E4","v":0}]
[null,null,{"$f":"Employment!E5","v":0},null,null,null,null,{"$f":"Housing!E5","v":0},null,null,null,null,{"$f":"Education!E5","v":0},null,null,null,null,{"$f":"Integration!E5","v":0}]
[null,null,{"$f":"Employment!E6","v":0},null,null,null,null,{"$f":"Housing!E6","v":0},null,null,null,null,{"$f":"Education!E6","v":0},null,null,null,null,{"$f":"Integration!E6","v":0}]
[null,null,{"$f":"Employment!E7","v":0},null,null,null,null,{"$f":"Housing!E7","v":0},null,null,null,null,{"$f":"Education!E7","v":0},null,null,null,null,{"$f":"Integration!E7","v":0}]
[null,null,{"$f":"Employment!E8","v":0},null,null,null,null,{"$f":"Housing!E8","v":0},null,null,null,null,{"$f":"Education!E8","v":0},null,null,null,null,{"$f":"Integration!E8","v":0}]
[null,null,{"$f":"Employment!E9","v":0},null,null,null,null,{"$f":"Housing!E9","v":0},null,null,null,null,{"$f":"Education!E9","v":0},null,null,null,null,{"$f":"Integration!E9","v":0}]
[null,null,{"$f":"Employment!E10","v":0},null,null,null,null,{"$f":"Housing!E10","v":0},null,null,null,null,{"$f":"Education!E10","v":0},null,null,null,null,{"$f":"Integration!E10","v":0}]
[null,null,{"$f":"Employment!E11","v":0},null,null,null,null,{"$f":"Housing!E11","v":0},null,null,null,null,{"$f":"Education!E11","v":0},null,null,null,null,{"$f":"Integration!E11","v":0}]
[null,null,{"$f":"Employment!E12","v":0},null,null,null,null,{"$f":"Housing!E12","v":0},null,null,null,null,{"$f":"Education!E12","v":0},null,null,null,null,{"$f":"Integration!E12","v":0}]
[null,null,{"$f":"Employment!E13","v":0},null,null,null,null,{"$f":"Housing!E13","v":0},null,null,null,null,{"$f":"Education!E13","v":0},null,null,null,null,{"$f":"Integration!E13","v":0}]
[null,null,{"$f":"Employment!E14","v":0},null,null,null,null,{"$f":"Housing!E14","v":0},null,null,null,null,{"$f":"Education!E14","v":0},null,null,null,null,{"$f":"Integration!E14","v":0}]
[null,null,{"$f":"Employment!E15","v":0},null,null,null,null,{"$f":"Housing!E15","v":0},null,null,null,null,{"$f":"Education!E15","v":0},null,null,null,null,{"$f":"Integration!E15","v":0}]
[null,null,{"$f":"Employment!E16","v":0},null,null,null,null,{"$f":"Housing!E16","v":0},null,null,null,null,null,null,null,null,null,{"$f":"Integration!E16","v":0}]
[null,null,{"$f":"Employment!E17","v":0},null,null,null,null,{"$f":"Housing!E17","v":0},null,null,null,null,null,null,null,null,null,{"$f":"Integration!E17","v":0}]
[null,null,{"$f":"Employment!E18","v":0},null,null,null,null,{"$f":"Housing!E18","v":0},null,null,null,null,null,null,null,null,null,{"$f":"Integration!E18","v":0}]
[null,null,{"$f":"Employment!E19","v":0},null,null,null,null,{"$f":"Housing!E19","v":0},null,null,null,null,null,null,null,null,null,{"$f":"Integration!E19","v":0}]
[null,null,null,null,null,null,null,null,null,null,null,null,null,null,null,null,null,{"$f":"Integration!E20","v":0}]
[null,null,null,null,null,null,null,null,null,null,null,null,null,null,null,null,null,{"$f":"Integration!E21","v":0}]
[null,null,null,null,null,null,null,null,null,null,null,null,null,null,null,null,null,{"$f":"Integration!E22","v":0}]